fUST/lending_fUST_20240612
["ID","MTS","AMOUNT","RATE_DAILY","PERIOD"]
[329122482,1718123442062,-150.4,0.00021536,2]
[329122484,1718123442074,-1929.96421265,0.00021712,2]
[329122486,1718123442085,-200.22147583,0.00021712,2]
[329122488,1718123442095,-659.54808576,0.00021713,2]
[329122490,1718123442105,-157.71613158,0.00021713,2]
[329122492,1718123442116,-187.30405388,0.00021714,2]
[329122494,1718123442128,-1507.9710839,0.00021714,2]
[329122496,1718123442139,-1501.26270931,0.00021714,2]
[329122498,1718123442149,-195.07919872,0.00021714,2]
[329122500,1718123442159,-690.18197407,0.00021715,2]
[329122502,1718123442169,-1799.53972863,0.00021716,2]
[329122504,1718123442179,-307.68079162,0.00021791,2]
[329122506,1718123442189,-279.24121694,0.00021791,2]
[329122512,1718123442248,-246.45612783,0.00021791,2]
[329122514,1718123442261,-353.97575728,0.00021792,2]
[329122702,1718123444450,-1523.17670682,0.00021792,2]
[329122704,1718123444461,-798.52504052,0.00021793,4]
[329122705,1718123444471,-1156.2,0.00021793,3]
[329122708,1718123444483,-150.4,0.00021793,3]
[329122709,1718123444495,-722.06198513,0.00021794,2]
[329122711,1718123444505,-500.0,0.00021799,2]
[329122714,1718123444518,-588.23474637,0.00021799,2]
[329122716,1718123444529,-475.07885507,0.00021799,2]
[329122718,1718123444540,-500.0,0.00021799,2]
[329122720,1718123444550,-500.0,0.00021799,2]
[329122722,1718123444561,-500.0,0.00021799,2]
[329122724,1718123444572,-166.20646004,0.00021799,2]
[329122725,1718123444582,-500.0,0.00021799,2]
[329122727,1718123444593,-500.0,0.00021799,2]
[329122729,1718123444603,-500.0,0.00021799,2]
[329122731,1718123444614,-500.0,0.00021799,2]
[329122733,1718123444628,-500.0,0.00021799,2]
[329122735,1718123444639,-500.0,0.00021799,2]
[329122737,1718123444649,-500.0,0.00021799,2]
[329122739,1718123444664,-500.0,0.00021799,2]
[329122741,1718123444675,-500.0,0.00021799,2]
[329122743,1718123444687,-500.0,0.00021799,2]
[329122745,1718123444699,-500.0,0.00021799,2]
[329122747,1718123444710,-159.45713594,0.00021799,2]
[329122749,1718123444720,-401.16603557,0.00021799,2]
[329122751,1718123444731,-500.0,0.00021799,2]
[329122753,1718123444742,-500.0,0.00021799,2]
[329122755,1718123444752,-500.0,0.00021799,2]
[329122757,1718123444763,-500.0,0.00021799,2]
[329122759,1718123444773,-500.0,0.00021799,2]
[329122761,1718123444783,-500.0,0.00021799,2]
[329122763,1718123444794,-500.0,0.00021799,2]
[329122765,1718123444804,-500.0,0.00021799,2]
[329122767,1718123444815,-500.0,0.00021799,2]
[329122769,1718123444825,-500.0,0.00021799,2]
[329122771,1718123444835,-500.0,0.00021799,2]
[329122773,1718123444846,-500.0,0.00021799,2]
[329122775,1718123444856,-500.0,0.00021799,2]
[329122777,1718123444866,-500.0,0.00021799,2]
[329122778,1718123444877,-500.0,0.00021799,2]
[329122779,1718123444888,-179.58913394,0.00021799,2]
[329122957,1718123532156,42041.14464155,9.999e-05,2]
[329122977,1718124544140,1000.0,0.00025,60]
[329122978,1718124544942,526.5926666,9.999e-05,2]
[329122982,1718124567320,372.78766585,9.999e-05,2]
[329122984,1718124573217,155.02015262,9.999e-05,2]
[329123061,1718124634703,-24900.0,0.00018735,2]
[329123062,1718124634719,-163.00837224,0.00019,2]
[329123063,1718124634730,-345.756026,0.00019074,2]
[329123064,1718124634740,-745.89382043,0.00019699,2]
[329123065,1718124634750,-9605.60540418,0.00019998,2]
[329123066,1718124634760,-9502.43188347,0.0002,2]
[329123067,1718124634769,-13208.11135595,0.0002,2]
[329123068,1718124634782,-275.8329872,0.0002,2]
[329123069,1718124634792,-310.40442277,0.0002,2]
[329123070,1718124634804,-355.28152847,0.0002,2]
[329123140,1718124639286,-179.23585197,0.0002,2]
[329123142,1718124639296,-2136.16721893,0.0002,7]
[329123144,1718124639310,-23431.7363044,0.0002,7]
[329123146,1718124639320,-529.07913635,0.0002,4]
[329123148,1718124639331,-932.870483,0.0002,2]
[329123150,1718124639342,-157.67879839,0.0002,2]
[329123152,1718124639354,-221.9335218,0.00020878,2]
[329123155,1718124639364,-306.1746834,0.00020978,2]
[329123157,1718124639376,-153.0,0.00020978,2]
[329123159,1718124639387,-263.1757411,0.00020978,2]
[329123161,1718124639397,-399.72569273,0.00020997,2]
[329123163,1718124639409,-7269.5959632,0.00021,2]
[329123165,1718124639423,-394.12424459,0.00021,2]
[329123167,1718124639434,-963.5,0.00021238,2]
[329123169,1718124639444,-309.83910105,0.00021315,2]
[329123171,1718124639455,-11480.69038309,0.00021318,2]
[329123173,1718124639466,-12375.77524201,0.00021324,2]
[329123175,1718124639482,-11480.69038309,0.00021325,2]
[329123177,1718124639494,-1545.68523787,0.00021327,2]
[329123180,1718124639505,-10987.13770453,0.0002133,2]
[329123181,1718124639516,-11480.69038309,0.0002133,2]
[329123183,1718124639527,-309.83910105,0.00021332,2]
[329123185,1718124639538,-309.83910105,0.00021336,2]
[329123187,1718124639549,-309.83910105,0.00021337,2]
[329123189,1718124639560,-10987.13770453,0.00021341,2]
[329123191,1718124639571,-10987.13770453,0.00021354,2]
[329123193,1718124639582,-24013.5133255,0.00021355,2]
[329123196,1718124639593,-11480.69038309,0.00021359,2]
[329123198,1718124639603,-12375.77524201,0.0002136,2]
[329123200,1718124639614,-309.83910105,0.0002136,2]
[329123202,1718124639625,-12532.8229424,0.0002136,2]
[329123204,1718124639635,-12375.77524201,0.00021362,2]
[329123206,1718124639645,-12375.77524201,0.00021362,2]
[329123208,1718124639656,-24013.5133255,0.00021363,2]
[329123210,1718124639667,-24013.5133255,0.00021365,2]
[329123212,1718124639678,-24013.5133255,0.00021371,2]
[329123214,1718124639688,-24013.5133255,0.00021371,2]
[329123216,1718124639699,-160.0485424,0.00021374,2]
[329123218,1718124639709,-10987.13770453,0.00021374,2]
[329123220,1718124639723,-12532.8229424,0.00021377,2]
[329123221,1718124639734,-1545.68523787,0.00021378,2]
[329123224,1718124639745,-12375.77524201,0.00021379,2]
[329123226,1718124639755,-1545.68523787,0.00021383,2]
[329123228,1718124639765,-1545.68523787,0.00021385,2]
[329123229,1718124639776,-12532.8229424,0.00021388,2]
[329123231,1718124639786,-10987.13770453,0.00021389,2]
[329123233,1718124639796,-11480.69038309,0.00021392,2]
[329123235,1718124639806,-12532.8229424,0.00021395,2]
[329123237,1718124639818,-1545.68523787,0.00021395,2]
[329123239,1718124639829,-12532.8229424,0.00021395,2]
[329123241,1718124639839,-4239.70515949,0.00021411,2]
[329123243,1718124639850,-963.5,0.00021499,2]
[329123245,1718124639860,-166.666666,0.00021507,2]
[329123247,1718124639871,-22507.60965495,0.00021663,2]
[329123249,1718124639882,-2000.0,0.00021717,2]
[329123251,1718124639892,-88888.0,0.00021717,3]
[329123253,1718124639903,-963.5,0.00021759,3]
[329123255,1718124639913,-151.0,0.00021759,3]
[329123257,1718124639924,-156.27991408,0.00021792,2]
[329123259,1718124639934,-544.59903569,0.00021793,2]
[329123261,1718124639945,-500.0,0.00021793,2]
[329123263,1718124639955,-438.90744926,0.00021793,2]
[329123265,1718124639965,-500.0,0.00021793,2]
[329123267,1718124639981,-500.0,0.00021793,2]
[329123269,1718124639992,-500.0,0.00021793,2]
[329123271,1718124640003,-500.0,0.00021793,2]
[329123273,1718124640015,-500.0,0.00021793,2]
[329123275,1718124640026,-197.6616178,0.00021793,2]
[329123277,1718124640037,-500.0,0.00021793,2]
[329123279,1718124640047,-500.0,0.00021793,2]
[329123281,1718124640058,-500.0,0.00021793,2]
[329123283,1718124640069,-161.6942981,0.00021793,2]
[329123285,1718124640080,-500.0,0.00021793,2]
[329123287,1718124640091,-250.0,0.00021793,2]
[329123289,1718124640101,-500.0,0.00021793,2]
[329123291,1718124640111,-500.0,0.00021793,2]
[329123293,1718124640122,-500.0,0.00021793,2]
[329123295,1718124640133,-500.0,0.00021793,2]
[329123297,1718124640144,-500.0,0.00021793,2]
[329123299,1718124640154,-500.0,0.00021793,2]
[329123301,1718124640179,-500.0,0.00021793,2]
[329123303,1718124640192,-500.0,0.00021793,2]
[329123305,1718124640203,-500.0,0.00021793,2]
[329123307,1718124640213,-500.0,0.00021793,2]
[329123309,1718124640231,-500.0,0.00021793,2]
[329123311,1718124640241,-500.0,0.00021793,2]
[329123313,1718124640252,-500.0,0.00021793,2]
[329123315,1718124640262,-500.0,0.00021793,2]
[329123317,1718124640273,-500.0,0.00021793,2]
[329123319,1718124640283,-500.0,0.00021793,2]
[329123321,1718124640294,-500.0,0.00021793,2]
[329123323,1718124640304,-500.0,0.00021793,2]
[329123325,1718124640315,-500.00000001,0.00021793,2]
[329123327,1718124640325,-500.0,0.00021793,2]
[329123329,1718124640336,-500.0,0.00021793,2]
[329123332,1718124640347,-500.0,0.00021793,2]
[329123333,1718124640357,-500.0,0.00021793,2]
[329123335,1718124640368,-256.84212484,0.00021793,2]
[329123337,1718124640379,-500.0,0.00021793,2]
[329123339,1718124640389,-500.0,0.00021793,2]
[329123341,1718124640399,-500.0,0.00021793,2]
[329123343,1718124640411,-5949.97554156,0.00021794,15]
[329123355,1718124640537,-5472.52733108,0.00021796,2]
[329123358,1718124640549,-155.12913232,0.00021796,2]
[329123360,1718124640560,-1355.02163008,0.00021797,2]
[329123361,1718124640571,-4336.61976881,0.00021803,2]
[329123364,1718124640582,-686.31644292,0.00021808,2]
[329123366,1718124640594,-1281.8802491,0.00021808,2]
[329123368,1718124640606,-500.13400856,0.0002181,2]
[329123370,1718124640617,-423.03294383,0.00021815,2]
[329123372,1718124640628,-1982.90053047,0.00021815,2]
[329123374,1718124640639,-275.34585459,0.00021815,2]
[329123376,1718124640650,-309.95350775,0.00021815,2]
[329123378,1718124640660,-500.0,0.00021854,2]
[329123380,1718124640670,-499.0,0.0002188,2]
[329123382,1718124640681,-632.10237981,0.00021915,2]
[329123384,1718124640692,-208.3062304,0.00021915,2]
[329123386,1718124640703,-2418.9208407,0.00021916,2]
[329123388,1718124640713,-500.0,0.00021917,2]
[329123390,1718124640729,-507.09658554,0.00021917,2]
[329123392,1718124640739,-500.0,0.00021917,2]
[329123394,1718124640749,-501.17999592,0.00021917,2]
[329123396,1718124640759,-151.0,0.00021917,2]
[329123398,1718124640769,-151.0,0.00021917,2]
[329123400,1718124640779,-500.0,0.00021917,2]
[329123402,1718124640790,-500.0,0.00021917,2]
[329123404,1718124640800,-500.0,0.00021917,2]
[329123406,1718124640810,-513.73701891,0.00021917,2]
[329123408,1718124640820,-500.0,0.00021917,2]
[329123410,1718124640831,-500.0,0.00021917,2]
[329123412,1718124640841,-500.0,0.00021917,2]
[329123414,1718124640851,-500.0,0.00021917,2]
[329123416,1718124640862,-500.0,0.00021917,2]
[329123418,1718124640872,-500.0,0.00021917,2]
[329123420,1718124640882,-500.0,0.00021917,2]
[329123422,1718124640893,-500.0,0.00021917,2]
[329123424,1718124640903,-500.0,0.00021917,2]
[329123426,1718124640912,-504.8708622,0.00021917,2]
[329123428,1718124640922,-525.03726627,0.00021917,2]
[329123430,1718124640932,-503.09898158,0.00021917,2]
[329123432,1718124640942,-500.0,0.00021917,2]
[329123434,1718124640952,-500.0,0.00021917,2]
[329123435,1718124640963,-500.0,0.00021917,2]
[329123436,1718124640976,-534.64420322,0.00021917,2]
[329123437,1718124640986,-500.0,0.00021917,2]
[329123438,1718124640996,-500.0,0.00021917,2]
[329123439,1718124641006,-504.12256724,0.00021917,2]
[329123440,1718124641016,-500.0,0.00021917,2]
[329123441,1718124641027,-505.59587113,0.00021917,2]
[329123442,1718124641036,-500.0,0.00021917,2]
[329123443,1718124641046,-502.86779515,0.00021917,2]
[329123444,1718124641056,-500.0,0.00021917,2]
[329123445,1718124641067,-500.0,0.00021917,2]
[329123446,1718124641077,-509.12954843,0.00021917,2]
[329123447,1718124641088,-500.0,0.00021917,2]
[329123448,1718124641098,-501.83515497,0.00021917,2]
[329123449,1718124641108,-500.0,0.00021917,2]
[329123450,1718124641118,-500.0,0.00021917,2]
[329123451,1718124641129,-270.97207789,0.00021917,2]
[329123452,1718124641139,-500.0,0.00021917,2]
[329123453,1718124641149,-569.99529701,0.00021917,2]
[329123454,1718124641158,-500.0,0.00021917,2]
[329123455,1718124641174,-500.0,0.00021917,2]
[329123456,1718124641185,-500.0,0.00021917,2]
[329123457,1718124641194,-500.0,0.00021917,2]
[329123459,1718124641204,-500.0,0.00021917,2]
[329123460,1718124641214,-502.01549213,0.00021917,2]
[329123462,1718124641229,-500.0,0.00021917,2]
[329123464,1718124641240,-555.04581803,0.00021917,2]
[329123466,1718124641250,-503.73079873,0.00021917,2]
[329123468,1718124641260,-500.77156745,0.00021917,2]
[329123470,1718124641269,-501.17608346,0.00021917,2]
[329123472,1718124641279,-268.79721477,0.00021917,2]
[329123474,1718124641289,-500.0,0.00021917,2]
[329123476,1718124641299,-500.0,0.00021917,2]
[329123478,1718124641309,-364.17089129,0.00021917,2]
[329123480,1718124641320,-500.0,0.00021917,2]
[329123482,1718124641331,-501.08768205,0.00021917,2]
[329123484,1718124641341,-500.32483161,0.00021917,2]
[329123486,1718124641351,-500.0,0.00021917,2]
[329123488,1718124641361,-500.0,0.00021917,2]
[329123490,1718124641371,-500.0,0.00021917,2]
[329123492,1718124641382,-500.0,0.00021917,2]
[329123494,1718124641391,-500.0,0.00021917,2]
[329123496,1718124641403,-546.40192311,0.00021917,2]
[329123498,1718124641418,-500.0,0.00021917,2]
[329123500,1718124641428,-500.0,0.00021917,2]
[329123502,1718124641440,-506.77564398,0.00021917,2]
[329123504,1718124641451,-500.0,0.00021917,2]
[329123506,1718124641465,-500.0,0.00021917,2]
[329123508,1718124641484,-500.0,0.00021917,2]
[329123510,1718124641494,-502.36211925,0.00021917,2]
[329123512,1718124641506,-500.0,0.00021917,2]
[329123514,1718124641516,-500.0,0.00021917,2]
[329123516,1718124641527,-500.0,0.00021917,2]
[329123518,1718124641538,-500.0,0.00021917,2]
[329123520,1718124641548,-500.0,0.00021917,2]
[329123522,1718124641559,-500.0,0.00021917,2]
[329123524,1718124641570,-500.0,0.00021917,2]
[329123526,1718124641580,-328.43730866,0.00021917,2]
[329123528,1718124641590,-500.0,0.00021917,2]
[329123530,1718124641601,-500.0,0.00021917,2]
[329123532,1718124641611,-500.0,0.00021917,2]
[329123534,1718124641622,-500.0,0.00021917,2]
[329123536,1718124641632,-458.60833137,0.00021917,2]
[329123538,1718124641643,-500.0,0.00021917,2]
[329123540,1718124641653,-500.0,0.00021917,2]
[329123542,1718124641664,-500.53355497,0.00021917,2]
[329123544,1718124641674,-501.88525869,0.00021917,2]
[329123546,1718124641684,-500.0,0.00021917,2]
[329123548,1718124641694,-500.0,0.00021917,2]
[329123550,1718124641705,-500.0,0.00021917,2]
[329123552,1718124641715,-418.08787825,0.00021917,2]
[329123554,1718124641731,-500.0,0.00021917,2]
[329123556,1718124641741,-500.0,0.00021917,2]
[329123558,1718124641751,-500.0,0.00021917,2]
[329123560,1718124641763,-500.0,0.00021917,2]
[329123562,1718124641774,-501.3317627,0.00021917,2]
[329123564,1718124641784,-500.0,0.00021917,2]
[329123566,1718124641796,-501.84520417,0.00021917,2]
[329123568,1718124641807,-500.0,0.00021917,2]
[329123570,1718124641817,-500.48716466,0.00021917,2]
[329123572,1718124641828,-500.0,0.00021917,2]
[329123574,1718124641839,-500.89318047,0.00021917,2]
[329123576,1718124641849,-616.61,0.00021917,2]
[329123578,1718124641860,-500.0,0.00021917,2]
[329123580,1718124641870,-500.0,0.00021917,2]
[329123582,1718124641880,-503.85807536,0.00021917,2]
[329123584,1718124641891,-503.45999552,0.00021917,2]
[329123586,1718124641902,-500.0,0.00021917,2]
[329123588,1718124641914,-500.0,0.00021917,2]
[329123590,1718124641924,-500.0,0.00021917,2]
[329123592,1718124641935,-500.0,0.00021917,2]
[329123594,1718124641945,-500.0,0.00021917,2]
[329123596,1718124641956,-500.0,0.00021917,2]
[329123598,1718124641967,-500.0,0.00021917,2]
[329123600,1718124641984,-500.0,0.00021917,2]
[329123602,1718124641997,-502.59527146,0.00021917,2]
[329123604,1718124642008,-500.0,0.00021917,2]
[329123606,1718124642019,-385.65748618,0.00021917,2]
[329123608,1718124642030,-507.34362098,0.00021917,2]
[329123610,1718124642042,-500.0,0.00021917,2]
[329123613,1718124642053,-500.0,0.00021917,2]
[329123615,1718124642064,-500.0,0.00021917,2]
[329123616,1718124642076,-500.0,0.00021917,2]
[329123619,1718124642087,-500.0,0.00021917,2]
[329123621,1718124642098,-500.0,0.00021917,2]
[329123623,1718124642109,-500.0,0.00021917,2]
[329123624,1718124642119,-500.0,0.00021917,2]
[329123627,1718124642129,-500.0,0.00021917,2]
[329123629,1718124642140,-500.0,0.00021917,2]
[329123630,1718124642151,-500.0,0.00021917,2]
[329123633,1718124642162,-500.0,0.00021917,2]
[329123635,1718124642182,-500.0,0.00021917,2]
[329123637,1718124642194,-500.0,0.00021917,2]
[329123639,1718124642205,-500.0,0.00021917,2]
[329123641,1718124642217,-500.0,0.00021917,2]
[329123643,1718124642235,-500.0,0.00021917,2]
[329123645,1718124642246,-500.0,0.00021917,2]
[329123647,1718124642258,-500.0,0.00021917,2]
[329123649,1718124642269,-500.0,0.00021917,2]
[329123651,1718124642281,-500.0,0.00021917,2]
[329123653,1718124642292,-500.0,0.00021917,2]
[329123655,1718124642304,-500.0,0.00021917,2]
[329123657,1718124642316,-500.0,0.00021917,2]
[329123659,1718124642328,-500.0,0.00021917,2]
[329123661,1718124642339,-500.0,0.00021917,2]
[329123663,1718124642350,-500.0,0.00021917,2]
[329123665,1718124642362,-500.0,0.00021917,2]
[329123667,1718124642373,-500.0,0.00021917,2]
[329123669,1718124642383,-500.0,0.00021917,2]
[329123671,1718124642394,-500.0,0.00021917,2]
[329123673,1718124642405,-500.0,0.00021917,2]
[329123675,1718124642421,-500.0,0.00021917,2]
[329123677,1718124642432,-500.0,0.00021917,2]
[329123679,1718124642443,-500.0,0.00021917,2]
[329123681,1718124642455,-500.0,0.00021917,2]
[329123683,1718124642465,-500.0,0.00021917,2]
[329123685,1718124642484,-500.0,0.00021917,2]
[329123687,1718124642496,-500.0,0.00021917,2]
[329123689,1718124642507,-500.0,0.00021917,2]
[329123691,1718124642518,-500.0,0.00021917,2]
[329123693,1718124642529,-500.0,0.00021917,2]
[329123695,1718124642540,-500.0,0.00021917,2]
[329123697,1718124642551,-393.12664133,0.00021917,2]
[329123699,1718124642561,-500.0,0.00021917,2]
[329123701,1718124642572,-199.55698396,0.00021917,2]
[329123703,1718124642582,-500.0,0.00021917,2]
[329123705,1718124642592,-500.0,0.00021917,2]
[329123707,1718124642603,-514.91793982,0.00021917,2]
[329123709,1718124642613,-464.32304756,0.00021917,2]
[329123711,1718124642624,-500.0,0.00021917,2]
[329123713,1718124642636,-500.0,0.00021917,2]
[329123715,1718124642648,-500.0,0.00021917,2]
[329123717,1718124642658,-500.0,0.00021917,2]
[329123719,1718124642669,-1000.0,0.00021917,2]
[329123721,1718124642680,-502.18712384,0.00021917,2]
[329123723,1718124642690,-338.2996952,0.00021917,2]
[329123725,1718124642701,-500.0,0.00021917,2]
[329123727,1718124642711,-500.0,0.00021917,2]
[329123729,1718124642723,-500.0,0.00021917,2]
[329123731,1718124642733,-500.0,0.00021917,2]
[329123733,1718124642743,-500.0,0.00021917,2]
[329123735,1718124642754,-504.11737282,0.00021917,2]
[329123737,1718124642764,-503.39163515,0.00021917,2]
[329123739,1718124642774,-500.0,0.00021917,2]
[329123741,1718124642785,-500.0,0.00021917,2]
[329123743,1718124642796,-503.76087154,0.00021917,2]
[329123745,1718124642807,-158.83946374,0.00021917,2]
[329123747,1718124642817,-500.6077994,0.00021917,2]
[329123749,1718124642828,-500.0,0.00021917,2]
[329123751,1718124642839,-500.0,0.00021917,2]
[329123752,1718124642851,-574.6,0.00021917,2]
[329123755,1718124642861,-500.0,0.00021917,2]
[329123756,1718124642872,-501.24072591,0.00021917,2]
[329123758,1718124642883,-157.63869526,0.00021917,2]
[329123768,1718124642970,-357.6149747,0.00021917,2]
[329123770,1718124642994,-500.0,0.00021917,2]
[329123772,1718124643005,-500.0,0.00021917,2]
[329123774,1718124643015,-500.0,0.00021917,2]
[329123776,1718124643026,-500.0,0.00021917,2]
[329123778,1718124643037,-500.0,0.00021917,2]
[329123780,1718124643048,-516.17146369,0.00021917,2]
[329123782,1718124643059,-500.0,0.00021917,2]
[329123784,1718124643070,-500.0,0.00021917,2]
[329123786,1718124643081,-500.0,0.00021917,2]
[329123788,1718124643092,-500.0,0.00021917,2]
[329123790,1718124643103,-500.0,0.00021917,2]
[329123792,1718124643113,-500.0,0.00021917,2]
[329123794,1718124643124,-528.41681732,0.00021917,2]
[329123796,1718124643135,-500.0,0.00021917,2]
[329123798,1718124643145,-501.02131947,0.00021917,2]
[329123800,1718124643155,-500.0,0.00021917,2]
[329123802,1718124643170,-502.10315938,0.00021917,2]
[329123804,1718124643183,-500.0,0.00021917,2]
[329123806,1718124643194,-500.0,0.00021917,2]
[329123808,1718124643205,-500.0,0.00021917,2]
[329123810,1718124643215,-500.0,0.00021917,2]
[329123812,1718124643229,-500.0,0.00021917,2]
[329123814,1718124643240,-500.0,0.00021917,2]
[329123816,1718124643251,-514.89883152,0.00021917,2]
[329123818,1718124643263,-500.0,0.00021917,2]
[329123820,1718124643273,-500.0,0.00021917,2]
[329123823,1718124643284,-500.0,0.00021917,2]
[329123826,1718124643294,-500.0,0.00021917,2]
[329123829,1718124643305,-500.0,0.00021917,2]
[329123832,1718124643315,-500.0,0.00021917,2]
[329123834,1718124643326,-500.0,0.00021917,2]
[329123836,1718124643337,-500.0,0.00021917,2]
[329123838,1718124643347,-172.17982096,0.00021917,2]
[329123841,1718124643358,-500.0,0.00021917,2]
[329123844,1718124643369,-500.0,0.00021917,2]
[329123847,1718124643380,-502.21687804,0.00021917,2]
[329123849,1718124643391,-500.0,0.00021917,2]
[329123851,1718124643402,-500.0,0.00021917,2]
[329123853,1718124643414,-500.92770484,0.00021917,2]
[329123855,1718124643427,-500.0,0.00021917,2]
[329123857,1718124643438,-500.0,0.00021917,2]
[329123859,1718124643448,-507.97815804,0.00021917,2]
[329123861,1718124643459,-500.0,0.00021917,2]
[329123863,1718124643470,-500.0,0.00021917,2]
[329123865,1718124643482,-500.0,0.00021917,2]
[329123867,1718124643492,-500.0,0.00021917,2]
[329123869,1718124643504,-500.0,0.00021917,2]
[329123871,1718124643514,-500.0,0.00021917,2]
[329123873,1718124643524,-527.35950464,0.00021917,2]
[329123875,1718124643534,-500.39574462,0.00021917,2]
[329123876,1718124643544,-500.0,0.00021917,2]
[329123878,1718124643555,-500.0,0.00021917,2]
[329123880,1718124643565,-500.0,0.00021917,2]
[329123882,1718124643576,-500.0,0.00021917,2]
[329123884,1718124643586,-500.0,0.00021917,2]
[329123886,1718124643597,-500.0,0.00021917,2]
[329123888,1718124643608,-500.0,0.00021917,2]
[329123890,1718124643618,-500.0,0.00021917,2]
[329123892,1718124643629,-500.0,0.00021917,2]
[329123894,1718124643640,-500.0,0.00021917,2]
[329123896,1718124643651,-500.0,0.00021917,2]
[329123898,1718124643661,-500.0,0.00021917,2]
[329123900,1718124643672,-500.0,0.00021917,2]
[329123902,1718124643682,-500.0,0.00021917,2]
[329123904,1718124643693,-500.0,0.00021917,2]
[329123906,1718124643703,-500.0,0.00021917,2]
[329123908,1718124643713,-500.0,0.00021917,2]
[329123910,1718124643725,-500.0,0.00021917,2]
[329123912,1718124643736,-500.0,0.00021917,2]
[329123914,1718124643747,-500.0,0.00021917,2]
[329123916,1718124643757,-500.0,0.00021917,2]
[329123918,1718124643768,-500.0,0.00021917,2]
[329123920,1718124643780,-523.13248299,0.00021917,2]
[329123922,1718124643790,-500.0,0.00021917,2]
[329123924,1718124643800,-500.0,0.00021917,2]
[329123926,1718124643811,-500.0,0.00021917,2]
[329123928,1718124643821,-500.0,0.00021917,2]
[329123930,1718124643831,-500.0,0.00021917,2]
[329123932,1718124643841,-500.0,0.00021917,2]
[329123934,1718124643852,-500.0,0.00021917,2]
[329123936,1718124643863,-500.0,0.00021917,2]
[329123938,1718124643872,-500.0,0.00021917,2]
[329123940,1718124643883,-150.75,0.00021917,2]
[329123942,1718124643893,-500.0,0.00021917,2]
[329123944,1718124643903,-504.83209677,0.00021917,2]
[329123946,1718124643914,-538.19053226,0.00021917,2]
[329123948,1718124643924,-500.34839451,0.00021917,2]
[329123950,1718124643935,-508.45583443,0.00021917,2]
[329123952,1718124643945,-500.0,0.00021917,2]
[329123954,1718124643956,-500.0,0.00021917,2]
[329123956,1718124643966,-500.0,0.00021917,2]
[329123958,1718124643977,-500.0,0.00021917,2]
[329123960,1718124643987,-500.0,0.00021917,2]
[329123962,1718124643998,-500.0,0.00021917,2]
[329123964,1718124644008,-500.0,0.00021917,2]
[329123966,1718124644017,-500.0,0.00021917,2]
[329123968,1718124644026,-580.91594452,0.00021917,2]
[329123970,1718124644036,-500.0,0.00021917,2]
[329123972,1718124644046,-500.0,0.00021917,2]
[329123974,1718124644055,-623.03,0.00021917,2]
[329123976,1718124644066,-500.0,0.00021917,2]
[329123978,1718124644075,-500.0,0.00021917,2]
[329123980,1718124644085,-500.0,0.00021917,2]
[329123982,1718124644095,-500.0,0.00021917,2]
[329123984,1718124644105,-2860.82,0.00021917,2]
[329123986,1718124644116,-500.0,0.00021917,2]
[329123988,1718124644126,-500.0,0.00021917,2]
[329123990,1718124644136,-503.82153917,0.00021917,2]
[329123992,1718124644146,-500.0,0.00021917,2]
[329123994,1718124644156,-500.0,0.00021917,2]
[329123996,1718124644171,-514.16751253,0.00021917,2]
[329123998,1718124644184,-500.0,0.00021917,2]